[Event "Titled Tuesday Blitz March 01 Early 2022"]
[White "Mohammad Fahad, Rahman"]
[Black "Zierk, Steven"]
[WhiteFideId "10207791"]
[BlackFideId "2034255"]
[WhiteElo "2716"]
[BlackElo "2882"]
[Result "0-1"]
[Round "08"]
[TimeControl "180+1"]
[Date "2022.03.01"]
[WhiteClock "0:00:01"]
[BlackClock "0:00:52"]

1. Nf3 {[%clk 0:03:00]}  d5 {[%clk 0:02:58]} 2. b3 {[%clk 0:03:01]}  Nf6 {[%clk 0:02:56]} 3. Bb2 {[%clk 0:03:01]}  Bg4 {[%clk 0:02:56]} 4. Ne5 {[%clk 0:03:00]}  Bf5 {[%clk 0:02:56]} 5. e3 {[%clk 0:03:00]}  Nbd7 {[%clk 0:02:54]} 6. Nf3 {[%clk 0:02:58]}  e6 {[%clk 0:02:53]} 7. Be2 {[%clk 0:02:59]}  h6 {[%clk 0:02:49]} 8. O-O {[%clk 0:02:59]}  Be7 {[%clk 0:02:46]} 9. c4 {[%clk 0:02:59]}  O-O {[%clk 0:02:44]} 10. Nc3 {[%clk 0:02:59]}  c6 {[%clk 0:02:44]} 11. d4 {[%clk 0:02:59]}  a5 {[%clk 0:02:42]} 12. Rc1 {[%clk 0:02:58]}  Bd6 {[%clk 0:02:38]} 13. h3 {[%clk 0:02:46]}  Qe7 {[%clk 0:02:37]} 14. Bd3 {[%clk 0:02:33]}  Bxd3 {[%clk 0:02:18]} 15. Qxd3 {[%clk 0:02:34]}  Rfd8 {[%clk 0:02:11]} 16. cxd5 {[%clk 0:02:16]}  exd5 {[%clk 0:02:09]} 17. Ne2 {[%clk 0:02:16]}  Ne4 {[%clk 0:02:08]} 18. Nd2 {[%clk 0:02:13]}  f5 {[%clk 0:02:07]} 19. Nf4 {[%clk 0:01:56]}  g5 {[%clk 0:02:01]} 20. Ne2 {[%clk 0:01:52]}  h5 {[%clk 0:02:00]} 21. f3 {[%clk 0:01:48]}  Nxd2 {[%clk 0:01:59]} 22. Qxd2 {[%clk 0:01:48]}  Re8 {[%clk 0:02:00]} 23. e4 {[%clk 0:01:38]}  dxe4 {[%clk 0:01:52]} 24. fxe4 {[%clk 0:01:38]}  fxe4 {[%clk 0:01:51]} 25. Qe3 {[%clk 0:01:26]}  Rf8 {[%clk 0:01:48]} 26. Rce1 {[%clk 0:00:54]}  Bb4 {[%clk 0:01:21]} 27. Nc3 {[%clk 0:00:48]}  Bxc3 {[%clk 0:01:19]} 28. Bxc3 {[%clk 0:00:48]}  Nb6 {[%clk 0:01:16]} 29. Rxf8+ {[%clk 0:00:38]}  Rxf8 {[%clk 0:01:16]} 30. Qxe4 {[%clk 0:00:37]}  Qxe4 {[%clk 0:01:15]} 31. Rxe4 {[%clk 0:00:32]}  a4 {[%clk 0:01:07]} 32. Re5 {[%clk 0:00:26]}  g4 {[%clk 0:01:02]} 33. hxg4 {[%clk 0:00:22]}  hxg4 {[%clk 0:01:01]} 34. Rg5+ {[%clk 0:00:21]}  Kf7 {[%clk 0:01:02]} 35. Rxg4 {[%clk 0:00:18]}  Nd5 {[%clk 0:01:02]} 36. Bd2 {[%clk 0:00:12]}  axb3 {[%clk 0:01:00]} 37. axb3 {[%clk 0:00:11]}  Ra8 {[%clk 0:01:01]} 38. Rg3 {[%clk 0:00:08]}  Ra2 {[%clk 0:00:58]} 39. Bh6 {[%clk 0:00:07]}  b5 {[%clk 0:00:56]} 40. Rf3+ {[%clk 0:00:06]}  Kg6 {[%clk 0:00:52]} 41. Bf8 {[%clk 0:00:01]}  Nf6 {[%clk 0:00:52]} 0-1


[Site "https://www.chess.com"]

[Event "Titled Tuesday Blitz March 01 Early 2022"]
[White "Molina, Roberto Junio Brito"]
[Black "Risteski, Emil"]
[WhiteFideId "2109450"]
[BlackFideId "15005267"]
[WhiteElo "2402"]
[BlackElo "2070"]
[Result "1/2-1/2"]
[Round "08"]
[TimeControl "180+1"]
[Date "2022.03.01"]
[WhiteClock "0:01:30"]
[BlackClock "0:01:28"]

1. d4 {[%clk 0:03:00]}  d6 {[%clk 0:02:59]} 2. e4 {[%clk 0:03:00]}  Nf6 {[%clk 0:03:00]} 3. Nc3 {[%clk 0:02:59]}  e5 {[%clk 0:03:00]} 4. dxe5 {[%clk 0:02:56]}  dxe5 {[%clk 0:03:01]} 5. Qxd8+ {[%clk 0:02:55]}  Kxd8 {[%clk 0:03:02]} 6. Bc4 {[%clk 0:02:55]}  Ke8 {[%clk 0:03:02]} 7. f3 {[%clk 0:02:51]}  c6 {[%clk 0:03:02]} 8. Be3 {[%clk 0:02:51]}  b5 {[%clk 0:03:01]} 9. Bb3 {[%clk 0:02:48]}  a5 {[%clk 0:03:01]} 10. a4 {[%clk 0:02:44]}  b4 {[%clk 0:03:01]} 11. Nb1 {[%clk 0:02:42]}  Ba6 {[%clk 0:03:02]} 12. Nd2 {[%clk 0:02:41]}  Nbd7 {[%clk 0:02:58]} 13. Bc4 {[%clk 0:02:41]}  Bc5 {[%clk 0:02:53]} 14. Kf2 {[%clk 0:02:36]}  Bxe3+ {[%clk 0:02:51]} 15. Kxe3 {[%clk 0:02:35]}  Nb6 {[%clk 0:02:51]} 16. Bxa6 {[%clk 0:02:35]}  Rxa6 {[%clk 0:02:52]} 17. Ne2 {[%clk 0:02:34]}  Ke7 {[%clk 0:02:51]} 18. Rhd1 {[%clk 0:02:06]}  Nfd7 {[%clk 0:02:51]} 19. Nc1 {[%clk 0:01:59]}  Nc5 {[%clk 0:02:47]} 20. b3 {[%clk 0:01:59]}  Ne6 {[%clk 0:02:45]} 21. Nd3 {[%clk 0:01:59]}  f6 {[%clk 0:02:45]} 22. Rac1 {[%clk 0:01:54]}  c5 {[%clk 0:02:27]} 23. Nb2 {[%clk 0:01:52]}  Rd8 {[%clk 0:02:19]} 24. Ndc4 {[%clk 0:01:50]}  Nd4 {[%clk 0:02:15]} 25. Rd2 {[%clk 0:01:48]}  Nxc4+ {[%clk 0:02:05]} 26. Nxc4 {[%clk 0:01:46]}  Ke6 {[%clk 0:01:52]} 27. Kf2 {[%clk 0:01:44]}  Raa8 {[%clk 0:01:47]} 28. Rcd1 {[%clk 0:01:42]}  g6 {[%clk 0:01:38]} 29. Nb6 {[%clk 0:01:39]}  Rab8 {[%clk 0:01:36]} 30. Nc4 {[%clk 0:01:38]}  Ra8 {[%clk 0:01:35]} 31. Nb6 {[%clk 0:01:32]}  Ra6 {[%clk 0:01:30]} 32. Nc4 {[%clk 0:01:30]}  Raa8 {[%clk 0:01:28]} 1/2-1/2


[Site "https://www.chess.com"]

[Event "Titled Tuesday Blitz March 01 Early 2022"]
[White "Moreira, Ronaldo Alonso"]
[Black "Mohammadian, Mohammad"]
[WhiteFideId "2110547"]
[BlackFideId "12566055"]
[WhiteElo "2037"]
[BlackElo "1543"]
[Result "1-0"]
[Round "08"]
[TimeControl "180+1"]
[Date "2022.03.01"]
[WhiteClock "0:00:06"]
[BlackClock "0:00:10"]

1. d4 {[%clk 0:03:00]}  Nf6 {[%clk 0:02:59]} 2. c4 {[%clk 0:03:01]}  g6 {[%clk 0:02:58]} 3. Nc3 {[%clk 0:03:01]}  d5 {[%clk 0:02:58]} 4. Bf4 {[%clk 0:03:00]}  Bg7 {[%clk 0:02:57]} 5. e3 {[%clk 0:03:01]}  O-O {[%clk 0:02:56]} 6. Rc1 {[%clk 0:03:01]}  c6 {[%clk 0:02:56]} 7. Nf3 {[%clk 0:02:59]}  Bf5 {[%clk 0:02:55]} 8. Be2 {[%clk 0:02:56]}  Nbd7 {[%clk 0:02:55]} 9. h3 {[%clk 0:02:49]}  Qb6 {[%clk 0:02:53]} 10. Qb3 {[%clk 0:02:41]}  Qxb3 {[%clk 0:02:52]} 11. axb3 {[%clk 0:02:42]}  a5 {[%clk 0:02:48]} 12. g4 {[%clk 0:02:38]}  Be6 {[%clk 0:02:44]} 13. Ng5 {[%clk 0:02:22]}  Nb6 {[%clk 0:02:31]} 14. Nxe6 {[%clk 0:02:11]}  fxe6 {[%clk 0:02:30]} 15. O-O {[%clk 0:02:03]}  Nbd7 {[%clk 0:02:23]} 16. Ra1 {[%clk 0:01:54]}  b6 {[%clk 0:02:15]} 17. Bg3 {[%clk 0:01:33]}  Ne8 {[%clk 0:02:06]} 18. b4 {[%clk 0:01:19]}  Nd6 {[%clk 0:02:01]} 19. bxa5 {[%clk 0:00:33]}  bxa5 {[%clk 0:02:01]} 20. c5 {[%clk 0:00:33]}  Ne8 {[%clk 0:01:47]} 21. b4 {[%clk 0:00:31]}  Nef6 {[%clk 0:01:22]} 22. bxa5 {[%clk 0:00:19]}  Ra7 {[%clk 0:01:20]} 23. a6 {[%clk 0:00:18]}  Ne8 {[%clk 0:01:10]} 24. Na4 {[%clk 0:00:17]}  Ndf6 {[%clk 0:00:57]} 25. Nb6 {[%clk 0:00:16]}  Ne4 {[%clk 0:00:53]} 26. Nc8 {[%clk 0:00:14]}  Ra8 {[%clk 0:00:48]} 27. Nxe7+ {[%clk 0:00:14]}  Kh8 {[%clk 0:00:47]} 28. Nxc6 {[%clk 0:00:14]}  Nc3 {[%clk 0:00:45]} 29. Bd3 {[%clk 0:00:13]}  Nf6 {[%clk 0:00:38]} 30. Rfc1 {[%clk 0:00:11]}  Nfe4 {[%clk 0:00:36]} 31. Bxe4 {[%clk 0:00:07]}  Nxe4 {[%clk 0:00:34]} 32. Rcb1 {[%clk 0:00:06]}  Nxg3 {[%clk 0:00:32]} 33. fxg3 {[%clk 0:00:06]}  Rf3 {[%clk 0:00:30]} 34. a7 {[%clk 0:00:05]}  Rxe3 {[%clk 0:00:27]} 35. Rb8+ {[%clk 0:00:05]}  Rxb8 {[%clk 0:00:12]} 36. axb8=Q+ {[%clk 0:00:05]}  Bf8 {[%clk 0:00:10]} 37. Qxf8# {[%clk 0:00:06]} 1-0


[Site "https://www.chess.com"]

[Event "Titled Tuesday Blitz March 01 Early 2022"]
[White "Muradov, Soltan"]
[Black "Brunner, Nicolas"]
[WhiteFideId "14002108"]
[BlackFideId "620246"]
[WhiteElo "1854"]
[BlackElo "2372"]
[Result "1/2-1/2"]
[Round "08"]
[TimeControl "180+1"]
[Date "2022.03.01"]
[WhiteClock "0:00:03"]
[BlackClock "0:00:05"]

1. d4 {[%clk 0:03:00]}  d5 {[%clk 0:02:59]} 2. Nf3 {[%clk 0:03:00]}  Nf6 {[%clk 0:02:58]} 3. Bf4 {[%clk 0:03:00]}  e6 {[%clk 0:02:58]} 4. e3 {[%clk 0:03:01]}  c5 {[%clk 0:02:57]} 5. c3 {[%clk 0:03:01]}  Nc6 {[%clk 0:02:56]} 6. Nbd2 {[%clk 0:03:01]}  Bd6 {[%clk 0:02:56]} 7. Bg3 {[%clk 0:03:00]}  O-O {[%clk 0:02:54]} 8. Bd3 {[%clk 0:03:00]}  b6 {[%clk 0:02:53]} 9. O-O {[%clk 0:02:59]}  Bb7 {[%clk 0:02:50]} 10. dxc5 {[%clk 0:02:44]}  bxc5 {[%clk 0:02:49]} 11. e4 {[%clk 0:02:44]}  Bxg3 {[%clk 0:02:17]} 12. hxg3 {[%clk 0:02:44]}  Qb6 {[%clk 0:02:17]} 13. exd5 {[%clk 0:02:37]}  exd5 {[%clk 0:02:17]} 14. Qc2 {[%clk 0:02:38]}  Rfe8 {[%clk 0:02:10]} 15. Rfe1 {[%clk 0:02:37]}  g6 {[%clk 0:02:10]} 16. Rxe8+ {[%clk 0:02:03]}  Rxe8 {[%clk 0:02:09]} 17. Re1 {[%clk 0:02:04]}  Rxe1+ {[%clk 0:02:05]} 18. Nxe1 {[%clk 0:02:05]}  Ng4 {[%clk 0:01:54]} 19. Be2 {[%clk 0:01:56]}  Nce5 {[%clk 0:01:48]} 20. Nef3 {[%clk 0:01:52]}  Kg7 {[%clk 0:01:24]} 21. Nxe5 {[%clk 0:01:45]}  Nxe5 {[%clk 0:01:24]} 22. Nf3 {[%clk 0:01:45]}  Ng4 {[%clk 0:01:19]} 23. Qd2 {[%clk 0:01:39]}  Nf6 {[%clk 0:01:14]} 24. Bd1 {[%clk 0:01:05]}  Ne4 {[%clk 0:01:13]} 25. Qe2 {[%clk 0:01:05]}  Ba6 {[%clk 0:01:07]} 26. Qc2 {[%clk 0:00:49]}  g5 {[%clk 0:00:50]} 27. Be2 {[%clk 0:00:46]}  g4 {[%clk 0:00:48]} 28. Bxa6 {[%clk 0:00:34]}  Qxa6 {[%clk 0:00:42]} 29. Ne5 {[%clk 0:00:34]}  h5 {[%clk 0:00:37]} 30. Nd3 {[%clk 0:00:31]}  Qf6 {[%clk 0:00:22]} 31. Nf4 {[%clk 0:00:30]}  Qe5 {[%clk 0:00:22]} 32. Qe2 {[%clk 0:00:20]}  Qf5 {[%clk 0:00:20]} 33. Qa6 {[%clk 0:00:07]}  Nd2 {[%clk 0:00:19]} 34. Kh2 {[%clk 0:00:02]}  h4 {[%clk 0:00:16]} 35. Qxa7 {[%clk 0:00:01]}  hxg3+ {[%clk 0:00:16]} 36. fxg3 {[%clk 0:00:02]}  Nf1+ {[%clk 0:00:15]} 37. Kg1 {[%clk 0:00:02]}  Qb1 {[%clk 0:00:15]} 38. Qxc5 {[%clk 0:00:01]}  Nd2+ {[%clk 0:00:14]} 39. Kh2 {[%clk 0:00:02]}  Nf1+ {[%clk 0:00:14]} 40. Kg1 {[%clk 0:00:02]}  Nxg3+ {[%clk 0:00:11]} 41. Kh2 {[%clk 0:00:03]}  Nf1+ {[%clk 0:00:11]} 42. Kg1 {[%clk 0:00:03]}  g3 {[%clk 0:00:10]} 43. Qd4+ {[%clk 0:00:03]}  Kg8 {[%clk 0:00:08]} 44. Qd3 {[%clk 0:00:03]}  Qxd3 {[%clk 0:00:08]} 45. Nxd3 {[%clk 0:00:04]}  Ne3 {[%clk 0:00:08]} 46. Ne5 {[%clk 0:00:04]}  Nd1 {[%clk 0:00:08]} 47. a4 {[%clk 0:00:03]}  Nxb2 {[%clk 0:00:06]} 48. a5 {[%clk 0:00:04]}  Na4 {[%clk 0:00:06]} 49. Nd7 {[%clk 0:00:03]}  Nxc3 {[%clk 0:00:04]} 50. a6 {[%clk 0:00:04]}  Nb5 {[%clk 0:00:05]} 51. Kf1 {[%clk 0:00:03]}  f5 {[%clk 0:00:04]} 52. Nf6+ {[%clk 0:00:03]}  Kf7 {[%clk 0:00:04]} 53. Nxd5 {[%clk 0:00:04]}  Ke6 {[%clk 0:00:04]} 54. Nb4 {[%clk 0:00:02]}  Ke5 {[%clk 0:00:04]} 55. Ke2 {[%clk 0:00:02]}  Ke4 {[%clk 0:00:03]} 56. Nc6 {[%clk 0:00:01]}  f4 {[%clk 0:00:03]} 57. a7 {[%clk 0:00:01]}  Nxa7 {[%clk 0:00:03]} 58. Nxa7 {[%clk 0:00:02]}  f3+ {[%clk 0:00:03]} 59. gxf3+ {[%clk 0:00:03]}  Kf4 {[%clk 0:00:04]} 60. Nc8 {[%clk 0:00:02]}  g2 {[%clk 0:00:04]} 61. Kf2 {[%clk 0:00:02]}  g1=Q+ {[%clk 0:00:04]} 62. Kxg1 {[%clk 0:00:03]}  Kxf3 {[%clk 0:00:05]} 1/2-1/2


[Site "https://www.chess.com"]

[Event "Titled Tuesday Blitz March 01 Early 2022"]
[White "Musovic, Armin"]
[Black "Prieto Aranguren, Alain"]
[WhiteFideId "939935"]
[BlackFideId "2268906"]
[WhiteElo "2250"]
[BlackElo "2235"]
[Result "1/2-1/2"]
[Round "08"]
[TimeControl "180+1"]
[Date "2022.03.01"]
[WhiteClock "0:01:52"]
[BlackClock "0:00:29"]

1. a3 {[%clk 0:03:00]}  e5 {[%clk 0:02:48]} 2. Nc3 {[%clk 0:03:01]}  d5 {[%clk 0:02:48]} 3. d4 {[%clk 0:03:01]}  e4 {[%clk 0:02:48]} 4. Bf4 {[%clk 0:03:00]}  c6 {[%clk 0:02:49]} 5. f3 {[%clk 0:03:00]}  f5 {[%clk 0:02:47]} 6. Qd2 {[%clk 0:03:00]}  Nf6 {[%clk 0:02:46]} 7. O-O-O {[%clk 0:02:59]}  b5 {[%clk 0:02:45]} 8. Nh3 {[%clk 0:03:00]}  a5 {[%clk 0:02:43]} 9. Nb1 {[%clk 0:02:57]}  Be7 {[%clk 0:02:36]} 10. e3 {[%clk 0:02:57]}  O-O {[%clk 0:02:35]} 11. Be2 {[%clk 0:02:55]}  Nbd7 {[%clk 0:02:34]} 12. Rhg1 {[%clk 0:02:55]}  Nb6 {[%clk 0:02:33]} 13. g4 {[%clk 0:02:55]}  fxg4 {[%clk 0:02:32]} 14. fxg4 {[%clk 0:02:54]}  Nc4 {[%clk 0:02:32]} 15. Bxc4 {[%clk 0:02:53]}  bxc4 {[%clk 0:02:31]} 16. g5 {[%clk 0:02:52]}  Bxh3 {[%clk 0:02:31]} 17. gxf6 {[%clk 0:02:52]}  Bxf6 {[%clk 0:02:31]} 18. Rg3 {[%clk 0:02:53]}  Bf5 {[%clk 0:02:25]} 19. Rdg1 {[%clk 0:02:53]}  Rb8 {[%clk 0:02:23]} 20. Bxb8 {[%clk 0:02:53]}  Qxb8 {[%clk 0:02:22]} 21. Qxa5 {[%clk 0:02:52]}  Qb7 {[%clk 0:02:16]} 22. Nc3 {[%clk 0:02:44]}  Rb8 {[%clk 0:02:13]} 23. Na4 {[%clk 0:02:44]}  h5 {[%clk 0:02:08]} 24. Qc3 {[%clk 0:02:40]}  h4 {[%clk 0:02:04]} 25. R3g2 {[%clk 0:02:41]}  Qe7 {[%clk 0:01:50]} 26. Nc5 {[%clk 0:02:34]}  Rb5 {[%clk 0:01:49]} 27. Rf2 {[%clk 0:02:28]}  Rxc5 {[%clk 0:01:41]} 28. Rxf5 {[%clk 0:02:27]}  Rb5 {[%clk 0:01:40]} 29. a4 {[%clk 0:02:19]}  Rb8 {[%clk 0:01:36]} 30. Qa3 {[%clk 0:02:14]}  Qe6 {[%clk 0:01:30]} 31. a5 {[%clk 0:02:12]}  Qxf5 {[%clk 0:01:28]} 32. a6 {[%clk 0:02:11]}  Qf2 {[%clk 0:01:25]} 33. Rd1 {[%clk 0:02:07]}  Ra8 {[%clk 0:01:21]} 34. a7 {[%clk 0:02:07]}  Qf5 {[%clk 0:01:15]} 35. Qa6 {[%clk 0:02:06]}  Qc8 {[%clk 0:01:15]} 36. Qxc8+ {[%clk 0:02:02]}  Rxc8 {[%clk 0:01:14]} 37. Kd2 {[%clk 0:02:03]}  Ra8 {[%clk 0:01:14]} 38. Ra1 {[%clk 0:02:04]}  g5 {[%clk 0:01:07]} 39. Kc3 {[%clk 0:02:01]}  Kf7 {[%clk 0:01:01]} 40. Kb4 {[%clk 0:02:01]}  g4 {[%clk 0:01:00]} 41. Kc5 {[%clk 0:02:01]}  g3 {[%clk 0:00:59]} 42. hxg3 {[%clk 0:02:01]}  hxg3 {[%clk 0:00:59]} 43. Kxc6 {[%clk 0:02:00]}  g2 {[%clk 0:00:55]} 44. Kb7 {[%clk 0:02:01]}  Rxa7+ {[%clk 0:00:46]} 45. Kxa7 {[%clk 0:02:00]}  Bg5 {[%clk 0:00:47]} 46. Rg1 {[%clk 0:01:56]}  Bxe3 {[%clk 0:00:47]} 47. Rxg2 {[%clk 0:01:57]}  Bxd4+ {[%clk 0:00:47]} 48. Kb7 {[%clk 0:01:57]}  Bxb2 {[%clk 0:00:47]} 49. Kc6 {[%clk 0:01:58]}  d4 {[%clk 0:00:43]} 50. Kd5 {[%clk 0:01:58]}  d3 {[%clk 0:00:40]} 51. Kxe4 {[%clk 0:01:57]}  dxc2 {[%clk 0:00:38]} 52. Rxc2 {[%clk 0:01:55]}  c3 {[%clk 0:00:39]} 53. Kd3 {[%clk 0:01:56]}  Ke6 {[%clk 0:00:38]} 54. Re2+ {[%clk 0:01:54]}  Kd5 {[%clk 0:00:38]} 55. Kc2 {[%clk 0:01:55]}  Kd4 {[%clk 0:00:38]} 56. Rh2 {[%clk 0:01:56]}  Ke4 {[%clk 0:00:38]} 57. Rh3 {[%clk 0:01:56]}  Kd4 {[%clk 0:00:37]} 58. Rh4+ {[%clk 0:01:56]}  Kd5 {[%clk 0:00:37]} 59. Ra4 {[%clk 0:01:57]}  Kc5 {[%clk 0:00:36]} 60. Kb3 {[%clk 0:01:57]}  Kd5 {[%clk 0:00:36]} 61. Ra5+ {[%clk 0:01:56]}  Kd4 {[%clk 0:00:36]} 62. Kc2 {[%clk 0:01:56]}  Kc4 {[%clk 0:00:36]} 63. Ra4+ {[%clk 0:01:56]}  Kc5 {[%clk 0:00:35]} 64. Rh4 {[%clk 0:01:57]}  Kd5 {[%clk 0:00:35]} 65. Kd3 {[%clk 0:01:58]}  Ke5 {[%clk 0:00:35]} 66. Rh8 {[%clk 0:01:58]}  Kd5 {[%clk 0:00:36]} 67. Rc8 {[%clk 0:01:58]}  Kd6 {[%clk 0:00:36]} 68. Ke4 {[%clk 0:01:57]}  Kd7 {[%clk 0:00:33]} 69. Rc4 {[%clk 0:01:57]}  Kd6 {[%clk 0:00:33]} 70. Ke3 {[%clk 0:01:55]}  Kd5 {[%clk 0:00:33]} 71. Kd3 {[%clk 0:01:56]}  Kd6 {[%clk 0:00:33]} 72. Rc8 {[%clk 0:01:53]}  Kd5 {[%clk 0:00:30]} 73. Rd8+ {[%clk 0:01:52]}  Kc5 {[%clk 0:00:29]} 74. Rd7 {[%clk 0:01:51]}  Kc6 {[%clk 0:00:29]} 75. Rd4 {[%clk 0:01:51]}  Kc5 {[%clk 0:00:29]} 76. Rc4+ {[%clk 0:01:51]}  Kd5 {[%clk 0:00:29]} 77. Rxc3 {[%clk 0:01:52]}  Bxc3 {[%clk 0:00:29]} 1/2-1/2


[Site "https://www.chess.com"]

[Event "Titled Tuesday Blitz March 01 Early 2022"]
[White "Nur-Mukhametova, Alisa"]
[Black "Lauridsen, Jesper Morch"]
[WhiteFideId "54117739"]
[BlackFideId "1401890"]
[WhiteElo "2015"]
[BlackElo "2197"]
[Result "1-0"]
[Round "08"]
[TimeControl "180+1"]
[Date "2022.03.01"]
[WhiteClock "0:00:32"]
[BlackClock "0:00:53"]

1. Nf3 {[%clk 0:03:00]}  g6 {[%clk 0:02:49]} 2. d4 {[%clk 0:03:00]}  Bg7 {[%clk 0:02:46]} 3. c4 {[%clk 0:02:59]}  d6 {[%clk 0:02:45]} 4. g3 {[%clk 0:02:58]}  Nf6 {[%clk 0:02:42]} 5. Bg2 {[%clk 0:02:57]}  O-O {[%clk 0:02:43]} 6. O-O {[%clk 0:02:58]}  c5 {[%clk 0:02:41]} 7. d5 {[%clk 0:02:57]}  e6 {[%clk 0:02:40]} 8. Nc3 {[%clk 0:02:51]}  exd5 {[%clk 0:02:38]} 9. cxd5 {[%clk 0:02:51]}  Re8 {[%clk 0:02:37]} 10. Re1 {[%clk 0:02:50]}  a6 {[%clk 0:02:36]} 11. a4 {[%clk 0:02:46]}  Ne4 {[%clk 0:02:33]} 12. Nxe4 {[%clk 0:02:31]}  Rxe4 {[%clk 0:02:33]} 13. Nd2 {[%clk 0:02:24]}  Rb4 {[%clk 0:02:32]} 14. Qc2 {[%clk 0:02:22]}  Nd7 {[%clk 0:02:30]} 15. Ra2 {[%clk 0:02:02]}  Qa5 {[%clk 0:02:13]} 16. b3 {[%clk 0:01:52]}  Qc7 {[%clk 0:01:56]} 17. Ba3 {[%clk 0:01:45]}  Rb6 {[%clk 0:01:49]} 18. Nc4 {[%clk 0:01:39]}  a5 {[%clk 0:01:44]} 19. Nxb6 {[%clk 0:01:35]}  Qxb6 {[%clk 0:01:44]} 20. Bb2 {[%clk 0:01:29]}  Ne5 {[%clk 0:01:41]} 21. h3 {[%clk 0:01:24]}  Bf5 {[%clk 0:01:39]} 22. e4 {[%clk 0:01:24]}  Bd7 {[%clk 0:01:37]} 23. Kh2 {[%clk 0:01:19]}  f5 {[%clk 0:01:35]} 24. f4 {[%clk 0:01:13]}  Nf7 {[%clk 0:01:35]} 25. Bxg7 {[%clk 0:01:13]}  Kxg7 {[%clk 0:01:35]} 26. Qc3+ {[%clk 0:01:11]}  Kg8 {[%clk 0:01:34]} 27. e5 {[%clk 0:01:06]}  dxe5 {[%clk 0:01:27]} 28. fxe5 {[%clk 0:01:06]}  Ng5 {[%clk 0:01:28]} 29. e6 {[%clk 0:01:03]}  Be8 {[%clk 0:01:26]} 30. Rc2 {[%clk 0:00:58]}  Rc8 {[%clk 0:01:25]} 31. h4 {[%clk 0:00:53]}  Ne4 {[%clk 0:01:21]} 32. Bxe4 {[%clk 0:00:53]}  fxe4 {[%clk 0:01:21]} 33. Rxe4 {[%clk 0:00:52]}  c4 {[%clk 0:01:18]} 34. Rxc4 {[%clk 0:00:50]}  Rd8 {[%clk 0:01:15]} 35. Qf3 {[%clk 0:00:45]}  Qd6 {[%clk 0:01:09]} 36. Rf2 {[%clk 0:00:41]}  b5 {[%clk 0:01:04]} 37. Rf4 {[%clk 0:00:39]}  Kg7 {[%clk 0:00:55]} 38. Qc3+ {[%clk 0:00:36]}  Kg8 {[%clk 0:00:52]} 39. Rf8+ {[%clk 0:00:33]}  Qxf8 {[%clk 0:00:53]} 40. Rxf8+ {[%clk 0:00:33]}  Kxf8 {[%clk 0:00:53]} 41. Qf6+ {[%clk 0:00:32]} 1-0


[Site "https://www.chess.com"]

[Event "Titled Tuesday Blitz March 01 Early 2022"]
[White "Pajeken, Jakob Leon"]
[Black "Reprintsev, Alexander"]
[WhiteFideId "12942839"]
[BlackFideId "14100541"]
[WhiteElo "2351"]
[BlackElo "2126"]
[Result "1/2-1/2"]
[Round "08"]
[TimeControl "180+1"]
[Date "2022.03.01"]
[WhiteClock "0:01:16"]
[BlackClock "0:01:29"]

1. d4 {[%clk 0:02:56]}  d5 {[%clk 0:02:59]} 2. c4 {[%clk 0:02:54]}  e5 {[%clk 0:02:56]} 3. cxd5 {[%clk 0:02:48]}  Qxd5 {[%clk 0:02:56]} 4. Nf3 {[%clk 0:02:45]}  Nc6 {[%clk 0:02:52]} 5. Nc3 {[%clk 0:02:37]}  Bb4 {[%clk 0:02:52]} 6. Bd2 {[%clk 0:02:36]}  Bxc3 {[%clk 0:02:50]} 7. Bxc3 {[%clk 0:02:34]}  e4 {[%clk 0:02:42]} 8. Nd2 {[%clk 0:02:33]}  e3 {[%clk 0:02:42]} 9. fxe3 {[%clk 0:02:31]}  Nf6 {[%clk 0:02:41]} 10. Qb3 {[%clk 0:02:28]}  Be6 {[%clk 0:02:38]} 11. Qxd5 {[%clk 0:02:22]}  Bxd5 {[%clk 0:02:37]} 12. Rg1 {[%clk 0:02:12]}  O-O-O {[%clk 0:02:35]} 13. g4 {[%clk 0:02:11]}  Rhe8 {[%clk 0:02:35]} 14. g5 {[%clk 0:02:09]}  Ne4 {[%clk 0:02:31]} 15. Nxe4 {[%clk 0:02:02]}  Rxe4 {[%clk 0:02:30]} 16. Kd2 {[%clk 0:01:59]}  Rh4 {[%clk 0:02:13]} 17. h3 {[%clk 0:01:55]}  Re8 {[%clk 0:02:09]} 18. Rg3 {[%clk 0:01:52]}  Re6 {[%clk 0:01:58]} 19. b3 {[%clk 0:01:41]}  Ne7 {[%clk 0:01:58]} 20. Rf3 {[%clk 0:01:34]}  Bxf3 {[%clk 0:01:57]} 21. exf3 {[%clk 0:01:35]}  Nd5 {[%clk 0:01:54]} 22. Bc4 {[%clk 0:01:28]}  c6 {[%clk 0:01:29]} 23. e4 {[%clk 0:01:16]} 1/2-1/2


[Site "https://www.chess.com"]

[Event "Titled Tuesday Blitz March 01 Early 2022"]
[White "Piliczewski, Bogusz"]
[Black "Golubenko, Valentina"]
[WhiteFideId "1104144"]
[BlackFideId "4501993"]
[WhiteElo "1896"]
[BlackElo "2164"]
[Result "1-0"]
[Round "08"]
[TimeControl "180+1"]
[Date "2022.03.01"]
[WhiteClock "0:01:06"]
[BlackClock "0:00:38"]

1. d4 {[%clk 0:03:00]}  Nf6 {[%clk 0:02:59]} 2. Nf3 {[%clk 0:03:00]}  g6 {[%clk 0:02:59]} 3. Bf4 {[%clk 0:03:00]}  Bg7 {[%clk 0:02:59]} 4. e3 {[%clk 0:03:01]}  O-O {[%clk 0:02:59]} 5. Be2 {[%clk 0:03:01]}  c5 {[%clk 0:02:59]} 6. c3 {[%clk 0:03:00]}  cxd4 {[%clk 0:02:59]} 7. exd4 {[%clk 0:02:55]}  d6 {[%clk 0:02:59]} 8. h3 {[%clk 0:02:55]}  Nc6 {[%clk 0:02:59]} 9. O-O {[%clk 0:02:55]}  Re8 {[%clk 0:02:59]} 10. Nbd2 {[%clk 0:02:55]}  e5 {[%clk 0:02:58]} 11. Bh2 {[%clk 0:02:55]}  e4 {[%clk 0:02:56]} 12. Ne1 {[%clk 0:02:53]}  d5 {[%clk 0:02:55]} 13. Nc2 {[%clk 0:02:44]}  a6 {[%clk 0:02:45]} 14. Ne3 {[%clk 0:02:43]}  b5 {[%clk 0:02:39]} 15. a4 {[%clk 0:02:41]}  b4 {[%clk 0:02:38]} 16. Qb3 {[%clk 0:02:34]}  bxc3 {[%clk 0:02:32]} 17. bxc3 {[%clk 0:02:32]}  Be6 {[%clk 0:02:30]} 18. Rfb1 {[%clk 0:02:26]}  Rc8 {[%clk 0:02:28]} 19. Bxa6 {[%clk 0:02:23]}  Rb8 {[%clk 0:02:22]} 20. Bxb8 {[%clk 0:02:21]}  Nxb8 {[%clk 0:02:21]} 21. Bb5 {[%clk 0:02:18]}  Rf8 {[%clk 0:02:15]} 22. a5 {[%clk 0:02:17]}  Nfd7 {[%clk 0:02:15]} 23. a6 {[%clk 0:02:14]}  Nb6 {[%clk 0:02:09]} 24. a7 {[%clk 0:02:09]}  N8d7 {[%clk 0:02:05]} 25. Bxd7 {[%clk 0:01:54]}  Na8 {[%clk 0:01:58]} 26. Bc6 {[%clk 0:01:50]}  Qc7 {[%clk 0:01:45]} 27. Qb7 {[%clk 0:01:48]}  Qd6 {[%clk 0:01:41]} 28. Qxa8 {[%clk 0:01:23]}  Rxa8 {[%clk 0:01:39]} 29. Bxa8 {[%clk 0:01:24]}  f5 {[%clk 0:01:32]} 30. Bb7 {[%clk 0:01:22]}  f4 {[%clk 0:01:25]} 31. a8=Q+ {[%clk 0:01:21]}  Kf7 {[%clk 0:01:25]} 32. Nxd5 {[%clk 0:01:14]}  f3 {[%clk 0:01:20]} 33. g3 {[%clk 0:01:09]}  Bxh3 {[%clk 0:00:43]} 34. Nxe4 {[%clk 0:01:09]}  Qd7 {[%clk 0:00:38]} 35. Ng5# {[%clk 0:01:06]} 1-0


[Site "https://www.chess.com"]